[Event "Early-Titled-Tuesday-Blitz-March-26-2024"]
[Site "Chess.com"]
[Date "2024.03.26"]
[Round "5"]
[White "quizden37"]
[Black "masnyszachistaaa"]
[Result "1-0"]
[WhiteElo "2851"]
[BlackElo "2582"]
[TimeControl "180+1"]
[EndTime "8:54:59 PDT"]
[Termination "quizden37 won on time"]

1. Nf3 {[%clk 0:02:49.7]} 1... c5 {[%clk 0:02:58.5]} 2. c4 {[%clk 0:02:49.6]}
2... Nc6 {[%clk 0:02:55.1]} 3. Nc3 {[%clk 0:02:50.1]} 3... g6 {[%clk 0:02:53.8]}
4. g3 {[%clk 0:02:48.7]} 4... Bg7 {[%clk 0:02:53.6]} 5. Bg2 {[%clk 0:02:49.3]}
5... d6 {[%clk 0:02:54.3]} 6. O-O {[%clk 0:02:49.9]} 6... e6 {[%clk 0:02:54.3]}
7. b3 {[%clk 0:02:26]} 7... Nge7 {[%clk 0:02:53.9]} 8. Bb2 {[%clk 0:02:26.7]}
8... O-O {[%clk 0:02:54.1]} 9. e3 {[%clk 0:02:27.2]} 9... d5 {[%clk 0:02:42]}
10. cxd5 {[%clk 0:02:26.6]} 10... exd5 {[%clk 0:02:37.9]} 11. d4 {[%clk
0:02:26.4]} 11... cxd4 {[%clk 0:02:31.8]} 12. Nxd4 {[%clk 0:02:25.7]} 12... Nxd4
{[%clk 0:02:31.1]} 13. exd4 {[%clk 0:02:26.6]} 13... Be6 {[%clk 0:02:31.2]} 14.
Ne2 {[%clk 0:02:25.4]} 14... Bg4 {[%clk 0:02:28.7]} 15. Re1 {[%clk 0:02:21.9]}
15... Nc6 {[%clk 0:02:28.2]} 16. h3 {[%clk 0:02:21.1]} 16... Bxe2 {[%clk
0:02:20.3]} 17. Qxe2 {[%clk 0:02:21.1]} 17... Nxd4 {[%clk 0:02:14.1]} 18. Bxd4
{[%clk 0:02:20.6]} 18... Bxd4 {[%clk 0:02:15]} 19. Rad1 {[%clk 0:02:21.1]} 19...
Qb6 {[%clk 0:01:45.7]} 20. Bxd5 {[%clk 0:02:20.9]} 20... Rad8 {[%clk 0:01:42.2]}
21. Bc4 {[%clk 0:02:11.1]} 21... Kg7 {[%clk 0:01:19.6]} 22. Kg2 {[%clk
0:02:08.6]} 22... Qc6+ {[%clk 0:01:16.7]} 23. Qf3 {[%clk 0:02:08.5]} 23... Qxf3+
{[%clk 0:01:15.9]} 24. Kxf3 {[%clk 0:02:09.4]} 24... Bc5 {[%clk 0:01:13.5]} 25.
h4 {[%clk 0:02:07]} 25... h5 {[%clk 0:01:12.8]} 26. Kg2 {[%clk 0:01:58.6]} 26...
Kf6 {[%clk 0:01:10]} 27. f4 {[%clk 0:01:57.4]} 27... Rfe8 {[%clk 0:00:55.6]} 28.
Rxe8 {[%clk 0:01:54.2]} 28... Rxd1 {[%clk 0:00:52.1]} 29. Rb8 {[%clk 0:01:51.3]}
29... Rd7 {[%clk 0:00:48]} 30. Kf3 {[%clk 0:01:49.1]} 30... b6 {[%clk
0:00:46.5]} 31. Rc8 {[%clk 0:01:47.9]} 31... Ke7 {[%clk 0:00:38.1]} 32. Rc6
{[%clk 0:01:45.9]} 32... Bd6 {[%clk 0:00:34.2]} 33. Rc8 {[%clk 0:01:43.5]} 33...
Rc7 {[%clk 0:00:32.1]} 34. Rh8 {[%clk 0:01:42.8]} 34... Kf6 {[%clk 0:00:27.7]}
35. a4 {[%clk 0:01:36.5]} 35... a5 {[%clk 0:00:20.3]} 36. Rd8 {[%clk 0:01:35.7]}
36... Bc5 {[%clk 0:00:20.4]} 37. Rd5 {[%clk 0:01:31.7]} 37... Re7 {[%clk
0:00:18.5]} 38. Rd3 {[%clk 0:01:30.1]} 38... Rc7 {[%clk 0:00:18]} 39. g4 {[%clk
0:01:29.3]} 39... hxg4+ {[%clk 0:00:17.9]} 40. Kxg4 {[%clk 0:01:29.9]} 40... Re7
{[%clk 0:00:18.5]} 41. Rd5 {[%clk 0:01:28.5]} 41... Kg7 {[%clk 0:00:15]} 42. Rg5
{[%clk 0:01:25.5]} 42... Re1 {[%clk 0:00:12.2]} 43. Rd5 {[%clk 0:01:25]} 43...
Rg1+ {[%clk 0:00:11.7]} 44. Kf3 {[%clk 0:01:25]} 44... Re1 {[%clk 0:00:11.9]}
45. Rd8 {[%clk 0:01:24.5]} 45... Re3+ {[%clk 0:00:11.5]} 46. Kg4 {[%clk
0:01:24.3]} 46... Re1 {[%clk 0:00:11.7]} 47. Rc8 {[%clk 0:01:19.3]} 47... Rg1+
{[%clk 0:00:11.3]} 48. Kf3 {[%clk 0:01:19.5]} 48... Re1 {[%clk 0:00:11.5]} 49.
Rd8 {[%clk 0:01:06.9]} 49... Kf6 {[%clk 0:00:11.3]} 50. Rd7 {[%clk 0:01:05.4]}
50... Re7 {[%clk 0:00:10.7]} 51. Rd5 {[%clk 0:01:05.8]} 51... Re1 {[%clk
0:00:10.9]} 52. h5 {[%clk 0:01:05.1]} 52... gxh5 {[%clk 0:00:10.6]} 53. Rxh5
{[%clk 0:01:06]} 53... Kg6 {[%clk 0:00:07.8]} 54. Rg5+ {[%clk 0:01:05.7]} 54...
Kf6 {[%clk 0:00:07.7]} 55. Rg8 {[%clk 0:01:06]} 55... Re7 {[%clk 0:00:07.6]} 56.
Rh8 {[%clk 0:01:00.9]} 56... Re3+ {[%clk 0:00:07.2]} 57. Kg4 {[%clk 0:01:01]}
57... Kg7 {[%clk 0:00:07.5]} 58. Rc8 {[%clk 0:00:59.5]} 58... Re1 {[%clk
0:00:07.6]} 59. Rc6 {[%clk 0:00:59.7]} 59... Rg1+ {[%clk 0:00:07]} 60. Kf3
{[%clk 0:01:00.1]} 60... Re1 {[%clk 0:00:07.5]} 61. f5 {[%clk 0:01:00.7]} 61...
Bd4 {[%clk 0:00:05.5]} 62. Rd6 {[%clk 0:00:59.7]} 62... Bc5 {[%clk 0:00:05.3]}
63. Rc6 {[%clk 0:00:57.6]} 63... Bd4 {[%clk 0:00:05.3]} 64. Kf4 {[%clk
0:00:57.8]} 64... Be3+ {[%clk 0:00:05.1]} 65. Kg4 {[%clk 0:00:57.9]} 65... Bd4
{[%clk 0:00:05.2]} 66. Rd6 {[%clk 0:00:53.6]} 66... Bc5 {[%clk 0:00:05.2]} 67.
f6+ {[%clk 0:00:53.9]} 67... Kg6 {[%clk 0:00:03.8]} 68. Bd3+ {[%clk 0:00:54]}
68... Kh6 {[%clk 0:00:03.8]} 69. Rd8 {[%clk 0:00:54.4]} 69... Rg1+ {[%clk
0:00:03.5]} 70. Kf4 {[%clk 0:00:50.9]} 1-0

[Event "Early-Titled-Tuesday-Blitz-March-26-2024"]
[Site "Chess.com"]
[Date "2024.03.26"]
[Round "5"]
[White "manitodeplomo"]
[Black "EternalNight8"]
[Result "0-1"]
[WhiteElo "2662"]
[BlackElo "2477"]
[TimeControl "180+1"]
[EndTime "8:55:02 PDT"]
[Termination "EternalNight8 won by resignation"]

1. d4 {[%clk 0:02:53.8]} 1... Nf6 {[%clk 0:02:59.9]} 2. c4 {[%clk 0:02:52.7]}
2... e6 {[%clk 0:03:00.3]} 3. Nf3 {[%clk 0:02:52.6]} 3... Bb4+ {[%clk
0:03:00.5]} 4. Bd2 {[%clk 0:02:52.3]} 4... a5 {[%clk 0:02:50.7]} 5. Qc2 {[%clk
0:02:49.6]} 5... d5 {[%clk 0:02:34.2]} 6. Nc3 {[%clk 0:02:42.3]} 6... O-O {[%clk
0:02:32.2]} 7. e3 {[%clk 0:02:35.1]} 7... b6 {[%clk 0:02:24.2]} 8. a3 {[%clk
0:02:26.5]} 8... Be7 {[%clk 0:02:19.4]} 9. cxd5 {[%clk 0:02:18.5]} 9... exd5
{[%clk 0:02:18.6]} 10. Bd3 {[%clk 0:02:17.6]} 10... c5 {[%clk 0:02:17]} 11. O-O
{[%clk 0:02:17.2]} 11... c4 {[%clk 0:02:16.3]} 12. Bf5 {[%clk 0:02:13.2]} 12...
Bxf5 {[%clk 0:02:12.6]} 13. Qxf5 {[%clk 0:02:14.1]} 13... Na6 {[%clk 0:02:08.5]}
14. b3 {[%clk 0:01:56.3]} 14... cxb3 {[%clk 0:01:58.4]} 15. Rfb1 {[%clk
0:01:55.1]} 15... g6 {[%clk 0:01:34.7]} 16. Qd3 {[%clk 0:01:49.4]} 16... Ne4
{[%clk 0:01:12.8]} 17. Rxb3 {[%clk 0:01:40.7]} 17... f5 {[%clk 0:01:06.1]} 18.
Rab1 {[%clk 0:01:38.9]} 18... Nc7 {[%clk 0:00:42.6]} 19. Rxb6 {[%clk 0:01:33]}
19... Bxa3 {[%clk 0:00:38.3]} 20. Ne5 {[%clk 0:01:21.6]} 20... Bd6 {[%clk
0:00:30]} 21. Nb5 {[%clk 0:01:10.4]} 21... Nxb5 {[%clk 0:00:28]} 22. R1xb5
{[%clk 0:01:10.5]} 22... Bxe5 {[%clk 0:00:18.3]} 23. dxe5 {[%clk 0:01:10.1]}
23... Qh4 {[%clk 0:00:16.4]} 24. Be1 {[%clk 0:00:58.6]} 24... Kh8 {[%clk
0:00:11.7]} 25. f3 {[%clk 0:00:56.5]} 25... Qh5 {[%clk 0:00:10.1]} 26. fxe4
{[%clk 0:00:45.3]} 26... fxe4 {[%clk 0:00:11]} 27. Qd2 {[%clk 0:00:37.8]} 27...
Qf5 {[%clk 0:00:10.8]} 28. Bf2 {[%clk 0:00:36.5]} 28... a4 {[%clk 0:00:09.9]}
29. e6 {[%clk 0:00:27.6]} 29... a3 {[%clk 0:00:09.5]} 30. Rb7 {[%clk 0:00:27.7]}
30... a2 {[%clk 0:00:08.1]} 31. Rb1 {[%clk 0:00:20.4]} 31... axb1=Q+ {[%clk
0:00:07.6]} 32. Rxb1 {[%clk 0:00:21.3]} 32... Qxe6 {[%clk 0:00:06.9]} 33. Be1
{[%clk 0:00:16.5]} 33... Qf6 {[%clk 0:00:06.9]} 34. Qe2 {[%clk 0:00:16.4]} 34...
Rab8 {[%clk 0:00:06.4]} 35. Rc1 {[%clk 0:00:15.8]} 35... Rbc8 {[%clk 0:00:06.3]}
36. Rd1 {[%clk 0:00:15.7]} 36... Rfd8 {[%clk 0:00:05.1]} 37. Qg4 {[%clk
0:00:07.3]} 37... Kg8 {[%clk 0:00:05.2]} 38. Bh4 {[%clk 0:00:06.8]} 38... Qf5
{[%clk 0:00:04.6]} 39. Qxf5 {[%clk 0:00:06.7]} 39... gxf5 {[%clk 0:00:05.5]} 40.
Bxd8 {[%clk 0:00:07.1]} 40... Rxd8 {[%clk 0:00:05.9]} 41. Kf2 {[%clk 0:00:07.6]}
41... Kf7 {[%clk 0:00:06.3]} 42. Kg3 {[%clk 0:00:08.2]} 42... Ke6 {[%clk
0:00:06.8]} 43. Kf4 {[%clk 0:00:08.6]} 43... Rg8 {[%clk 0:00:07.1]} 44. h3
{[%clk 0:00:02.1]} 44... Rxg2 {[%clk 0:00:07.6]} 45. Ra1 {[%clk 0:00:02.1]}
45... Rf2+ {[%clk 0:00:07.3]} 46. Kg5 {[%clk 0:00:02.4]} 46... Rg2+ {[%clk
0:00:07.4]} 47. Kf4 {[%clk 0:00:02.2]} 47... Rf2+ {[%clk 0:00:06.5]} 48. Kg5
{[%clk 0:00:03.1]} 48... Rf3 {[%clk 0:00:06.9]} 49. Kh6 {[%clk 0:00:03]} 49...
Rxh3+ {[%clk 0:00:06.5]} 50. Kg7 {[%clk 0:00:03.1]} 50... Rxe3 {[%clk
0:00:06.8]} 51. Ra8 {[%clk 0:00:03.5]} 51... Ke5 {[%clk 0:00:06.9]} 52. Re8+
{[%clk 0:00:04.1]} 52... Kd4 {[%clk 0:00:07.3]} 53. Kf6 {[%clk 0:00:04.5]} 53...
f4 {[%clk 0:00:07.6]} 54. Kf5 {[%clk 0:00:05.4]} 54... f3 {[%clk 0:00:08.1]} 55.
Ra8 {[%clk 0:00:05.6]} 55... f2 {[%clk 0:00:08.1]} 56. Ra4+ {[%clk 0:00:05.5]}
56... Kd3 {[%clk 0:00:08.5]} 57. Ra3+ {[%clk 0:00:05.7]} 57... Ke2 {[%clk
0:00:08.9]} 58. Ra2+ {[%clk 0:00:06.1]} 58... Ke1 {[%clk 0:00:08.8]} 59. Rxf2
{[%clk 0:00:07]} 59... Kxf2 {[%clk 0:00:08.9]} 0-1

[Event "Early-Titled-Tuesday-Blitz-March-26-2024"]
[Site "Chess.com"]
[Date "2024.03.26"]
[Round "5"]
[White "Tol_Tol"]
[Black "Orest_Vovk"]
[Result "0-1"]
[WhiteElo "2349"]
[BlackElo "2571"]
[TimeControl "180+1"]
[EndTime "8:55:02 PDT"]
[Termination "Orest_Vovk won on time"]

1. d4 {[%clk 0:03:00.9]} 1... Nc6 {[%clk 0:02:54]} 2. d5 {[%clk 0:02:54.9]} 2...
Ne5 {[%clk 0:02:53.1]} 3. Nc3 {[%clk 0:02:54.6]} 3... Ng6 {[%clk 0:02:52.1]} 4.
e4 {[%clk 0:02:54.2]} 4... e5 {[%clk 0:02:52.1]} 5. Be3 {[%clk 0:02:54.1]} 5...
Bb4 {[%clk 0:02:51]} 6. Ne2 {[%clk 0:02:53.4]} 6... Nf6 {[%clk 0:02:49.2]} 7. f3
{[%clk 0:02:53.3]} 7... O-O {[%clk 0:02:47.9]} 8. a3 {[%clk 0:02:53.8]} 8... Ba5
{[%clk 0:02:45.3]} 9. b4 {[%clk 0:02:46.5]} 9... Bb6 {[%clk 0:02:45]} 10. Bxb6
{[%clk 0:02:46.9]} 10... axb6 {[%clk 0:02:45.2]} 11. Ng3 {[%clk 0:02:44.9]}
11... d6 {[%clk 0:02:45]} 12. Bd3 {[%clk 0:02:43.7]} 12... Nf4 {[%clk
0:02:44.4]} 13. O-O {[%clk 0:02:43]} 13... g6 {[%clk 0:02:37.7]} 14. Nge2 {[%clk
0:02:42]} 14... N6h5 {[%clk 0:02:36.9]} 15. g3 {[%clk 0:02:37.5]} 15... Nh3+
{[%clk 0:02:25.3]} 16. Kg2 {[%clk 0:02:35.6]} 16... Qg5 {[%clk 0:02:23.3]} 17.
Qc1 {[%clk 0:02:20.7]} 17... f5 {[%clk 0:02:02.8]} 18. Qxg5 {[%clk 0:02:04.5]}
18... Nxg5 {[%clk 0:02:01.3]} 19. h4 {[%clk 0:01:54.4]} 19... fxe4 {[%clk
0:02:00.4]} 20. hxg5 {[%clk 0:01:29.3]} 20... exd3 {[%clk 0:02:00.6]} 21. cxd3
{[%clk 0:01:29.2]} 21... Ng7 {[%clk 0:01:49]} 22. g4 {[%clk 0:01:28.3]} 22...
Bd7 {[%clk 0:01:46.1]} 23. Ne4 {[%clk 0:01:27.8]} 23... Ne8 {[%clk 0:01:42.9]}
24. N2c3 {[%clk 0:01:17.3]} 24... Kg7 {[%clk 0:01:38.4]} 25. a4 {[%clk
0:01:16.5]} 25... h6 {[%clk 0:01:33.5]} 26. gxh6+ {[%clk 0:01:13.7]} 26... Kxh6
{[%clk 0:01:34.4]} 27. Rh1+ {[%clk 0:01:02.2]} 27... Kg7 {[%clk 0:01:34.2]} 28.
g5 {[%clk 0:00:56]} 28... Rh8 {[%clk 0:01:28.5]} 29. Rxh8 {[%clk 0:00:53.8]}
29... Kxh8 {[%clk 0:01:29.4]} 30. a5 {[%clk 0:00:51.4]} 30... bxa5 {[%clk
0:01:27.3]} 31. Rxa5 {[%clk 0:00:51.5]} 31... Rxa5 {[%clk 0:01:24.6]} 32. bxa5
{[%clk 0:00:51.9]} 32... Kg7 {[%clk 0:01:18.7]} 33. Kf2 {[%clk 0:00:51.5]} 33...
Kf7 {[%clk 0:01:15.9]} 34. Ke3 {[%clk 0:00:51.9]} 34... Ng7 {[%clk 0:01:11.8]}
35. Nf6 {[%clk 0:00:47.3]} 35... Nf5+ {[%clk 0:01:11.1]} 36. Kf2 {[%clk
0:00:43.7]} 36... Ke7 {[%clk 0:01:12]} 37. Ne2 {[%clk 0:00:35.6]} 37... Ba4
{[%clk 0:01:04.6]} 38. f4 {[%clk 0:00:30.8]} 38... Bb5 {[%clk 0:01:00.9]} 39.
fxe5 {[%clk 0:00:30.4]} 39... dxe5 {[%clk 0:00:56.7]} 40. Nc1 {[%clk 0:00:26.3]}
40... Kd6 {[%clk 0:00:55.5]} 41. Kf3 {[%clk 0:00:22.5]} 41... Ba4 {[%clk
0:00:47.7]} 42. Ke4 {[%clk 0:00:21.9]} 42... Ne7 {[%clk 0:00:24.5]} 43. Ne2
{[%clk 0:00:19.6]} 43... c6 {[%clk 0:00:14.6]} 44. dxc6 {[%clk 0:00:19.4]} 44...
Bxc6+ {[%clk 0:00:14.3]} 45. Ke3 {[%clk 0:00:19.1]} 45... Nf5+ {[%clk
0:00:14.7]} 46. Kd2 {[%clk 0:00:17.9]} 46... Ke6 {[%clk 0:00:13.6]} 47. Nc3
{[%clk 0:00:16.7]} 47... Nd4 {[%clk 0:00:13]} 48. Nce4 {[%clk 0:00:13.1]} 48...
Bxe4 {[%clk 0:00:11.1]} 49. Nxe4 {[%clk 0:00:09.4]} 49... Nb3+ {[%clk
0:00:11.3]} 50. Kc3 {[%clk 0:00:10.1]} 50... Nxa5 {[%clk 0:00:12]} 51. Kb4
{[%clk 0:00:10]} 51... Nc6+ {[%clk 0:00:11.6]} 52. Kb5 {[%clk 0:00:09.6]} 52...
Nd4+ {[%clk 0:00:11.9]} 53. Kb6 {[%clk 0:00:09.4]} 53... Nf3 {[%clk 0:00:12]}
54. Kxb7 {[%clk 0:00:07.1]} 54... Kf5 {[%clk 0:00:12.3]} 55. Kc6 {[%clk
0:00:01.6]} 55... Nxg5 {[%clk 0:00:12.3]} 0-1

[Event "Early-Titled-Tuesday-Blitz-March-26-2024"]
[Site "Chess.com"]
[Date "2024.03.26"]
[Round "5"]
[White "Andreikka"]
[Black "Sattarov_Bobur"]
[Result "1-0"]
[WhiteElo "2973"]
[BlackElo "2852"]
[TimeControl "180+1"]
[EndTime "8:55:04 PDT"]
[Termination "Andreikka won on time"]

1. e4 {[%clk 0:02:59.6]} 1... e5 {[%clk 0:03:00.3]} 2. Nf3 {[%clk 0:02:59.4]}
2... Nc6 {[%clk 0:03:01]} 3. Bb5 {[%clk 0:02:58.3]} 3... a6 {[%clk 0:03:01.4]}
4. Ba4 {[%clk 0:02:58.3]} 4... Bc5 {[%clk 0:03:02]} 5. d3 {[%clk 0:02:56.5]}
5... Qf6 {[%clk 0:03:02.1]} 6. Be3 {[%clk 0:02:56.7]} 6... Ba7 {[%clk
0:03:01.9]} 7. O-O {[%clk 0:02:56.4]} 7... Nge7 {[%clk 0:03:01.8]} 8. Nbd2
{[%clk 0:02:57]} 8... h6 {[%clk 0:03:01.5]} 9. c3 {[%clk 0:02:54.6]} 9... O-O
{[%clk 0:03:01.5]} 10. d4 {[%clk 0:02:48.9]} 10... d6 {[%clk 0:03:01.8]} 11.
dxe5 {[%clk 0:02:43.2]} 11... dxe5 {[%clk 0:03:01.9]} 12. Bxa7 {[%clk
0:02:40.1]} 12... Rxa7 {[%clk 0:03:02.8]} 13. Qe2 {[%clk 0:02:40.3]} 13... Ra8
{[%clk 0:03:01.6]} 14. Qe3 {[%clk 0:02:40]} 14... Bd7 {[%clk 0:02:55.8]} 15.
Rad1 {[%clk 0:02:33.7]} 15... Rad8 {[%clk 0:02:54.8]} 16. Bb3 {[%clk 0:02:31.8]}
16... Bg4 {[%clk 0:02:51.6]} 17. h3 {[%clk 0:02:31.2]} 17... Bc8 {[%clk
0:02:52.3]} 18. Kh2 {[%clk 0:02:30.3]} 18... Ng6 {[%clk 0:02:52.7]} 19. g3
{[%clk 0:02:30.6]} 19... Rd7 {[%clk 0:02:48.9]} 20. Kg2 {[%clk 0:02:24]} 20...
Rfd8 {[%clk 0:02:47.8]} 21. Nc4 {[%clk 0:02:15.8]} 21... Rxd1 {[%clk 0:02:47.6]}
22. Rxd1 {[%clk 0:02:16]} 22... Rxd1 {[%clk 0:02:47.6]} 23. Bxd1 {[%clk
0:02:16.9]} 23... Qe6 {[%clk 0:02:48]} 24. Bb3 {[%clk 0:02:06.7]} 24... Qxh3+
{[%clk 0:02:47.9]} 25. Kg1 {[%clk 0:02:07.2]} 25... Be6 {[%clk 0:02:42.4]} 26.
Ncd2 {[%clk 0:02:04.5]} 26... Qg4 {[%clk 0:02:29.1]} 27. Bd5 {[%clk 0:02:00.1]}
27... Nge7 {[%clk 0:02:22]} 28. c4 {[%clk 0:01:59.9]} 28... Qg6 {[%clk
0:01:58.1]} 29. a3 {[%clk 0:01:52.1]} 29... Qf6 {[%clk 0:01:52.7]} 30. b4 {[%clk
0:01:44.1]} 30... Nd8 {[%clk 0:01:36.4]} 31. Qc3 {[%clk 0:01:40.7]} 31... Ng6
{[%clk 0:01:33.9]} 32. c5 {[%clk 0:01:37.6]} 32... c6 {[%clk 0:01:31.8]} 33. Bc4
{[%clk 0:01:37.7]} 33... h5 {[%clk 0:01:24.2]} 34. Bxe6 {[%clk 0:01:20.8]} 34...
Nxe6 {[%clk 0:01:23.7]} 35. Nc4 {[%clk 0:01:21.5]} 35... Ng5 {[%clk 0:01:10.8]}
36. Nxg5 {[%clk 0:01:11.8]} 36... Qxg5 {[%clk 0:01:11.7]} 37. Nd6 {[%clk
0:01:00.9]} 37... Qe7 {[%clk 0:01:12.2]} 38. Qf3 {[%clk 0:00:59.7]} 38... h4
{[%clk 0:01:10.9]} 39. Qf5 {[%clk 0:00:59.8]} 39... hxg3 {[%clk 0:01:07]} 40.
fxg3 {[%clk 0:01:00.7]} 40... Nf8 {[%clk 0:00:52.7]} 41. Kg2 {[%clk 0:01:00.5]}
41... b5 {[%clk 0:00:48.5]} 42. Qc8 {[%clk 0:00:54.9]} 42... Qe6 {[%clk
0:00:32.3]} 43. Qxc6 {[%clk 0:00:51.2]} 43... Qa2+ {[%clk 0:00:31.9]} 44. Kh3
{[%clk 0:00:48.3]} 44... Qe6+ {[%clk 0:00:31.3]} 45. Nf5 {[%clk 0:00:48.5]}
45... g6 {[%clk 0:00:18.2]} 46. Qxe6 {[%clk 0:00:39.8]} 46... Nxe6 {[%clk
0:00:19.1]} 47. Ne3 {[%clk 0:00:20]} 47... f6 {[%clk 0:00:16.9]} 48. Nd5 {[%clk
0:00:19.1]} 48... Nd4 {[%clk 0:00:01.5]} 49. Nxf6+ {[%clk 0:00:18.1]} 49... Kf7
{[%clk 0:00:02.2]} 50. Ng4 {[%clk 0:00:08.1]} 50... Ke6 {[%clk 0:00:02.5]} 51.
Ne3 {[%clk 0:00:08.8]} 51... Kf6 {[%clk 0:00:01.2]} 52. Kg4 {[%clk 0:00:08.6]}
1-0

[Event "Early-Titled-Tuesday-Blitz-March-26-2024"]
[Site "Chess.com"]
[Date "2024.03.26"]
[Round "5"]
[White "LLariMarc"]
[Black "WiktoriaPOL"]
[Result "0-1"]
[WhiteElo "2429"]
[BlackElo "2283"]
[TimeControl "180+1"]
[EndTime "8:55:04 PDT"]
[Termination "WiktoriaPOL won by checkmate"]

1. d4 {[%clk 0:03:00.9]} 1... d5 {[%clk 0:02:59.1]} 2. Nf3 {[%clk 0:03:00.3]}
2... Nf6 {[%clk 0:02:56.9]} 3. Bg5 {[%clk 0:03:00.3]} 3... e6 {[%clk 0:02:53.3]}
4. e3 {[%clk 0:02:59.6]} 4... Be7 {[%clk 0:02:52.8]} 5. Nbd2 {[%clk 0:02:59.8]}
5... h6 {[%clk 0:02:50]} 6. Bh4 {[%clk 0:02:58.6]} 6... c5 {[%clk 0:02:50.2]} 7.
c3 {[%clk 0:02:54.7]} 7... Nc6 {[%clk 0:02:49.2]} 8. Bd3 {[%clk 0:02:54.2]} 8...
O-O {[%clk 0:02:49.3]} 9. O-O {[%clk 0:02:54.1]} 9... b6 {[%clk 0:02:46.9]} 10.
Re1 {[%clk 0:02:53.4]} 10... Bb7 {[%clk 0:02:47]} 11. Qe2 {[%clk 0:02:51.3]}
11... Rc8 {[%clk 0:02:45.6]} 12. Rad1 {[%clk 0:02:50.5]} 12... Ne4 {[%clk
0:02:40.9]} 13. Bxe7 {[%clk 0:02:49.7]} 13... Nxe7 {[%clk 0:02:40.7]} 14. h3
{[%clk 0:02:36]} 14... Nf5 {[%clk 0:02:37.1]} 15. Ne5 {[%clk 0:02:32.7]} 15...
Nfd6 {[%clk 0:02:33.6]} 16. Ndf3 {[%clk 0:02:31.8]} 16... f6 {[%clk 0:02:28.4]}
17. Ng6 {[%clk 0:02:31.5]} 17... Re8 {[%clk 0:02:25.4]} 18. Bxe4 {[%clk
0:02:30.6]} 18... Nxe4 {[%clk 0:02:19.2]} 19. Nf4 {[%clk 0:02:29.5]} 19... e5
{[%clk 0:02:16.7]} 20. dxe5 {[%clk 0:02:27.2]} 20... fxe5 {[%clk 0:02:17.6]} 21.
Nd3 {[%clk 0:02:27.7]} 21... Ba6 {[%clk 0:02:10.8]} 22. Qc2 {[%clk 0:02:26]}
22... Qf6 {[%clk 0:02:05.7]} 23. b3 {[%clk 0:01:30.4]} 23... Nd6 {[%clk
0:01:56.1]} 24. Nd2 {[%clk 0:01:23.2]} 24... Rf8 {[%clk 0:01:43]} 25. f3 {[%clk
0:01:23]} 25... Qg5 {[%clk 0:01:32.4]} 26. Nf2 {[%clk 0:01:21.7]} 26... Nf5
{[%clk 0:01:28.5]} 27. Qc1 {[%clk 0:00:16.3]} 27... Nxe3 {[%clk 0:01:25.3]} 28.
Rxe3 {[%clk 0:00:16.8]} 28... Qxe3 {[%clk 0:01:24.8]} 29. Re1 {[%clk 0:00:14.6]}
29... Qf4 {[%clk 0:01:22.9]} 30. Nf1 {[%clk 0:00:11.8]} 30... Qxc1 {[%clk
0:01:21.4]} 31. Rxc1 {[%clk 0:00:12.7]} 31... d4 {[%clk 0:01:21]} 32. c4 {[%clk
0:00:12.6]} 32... Bb7 {[%clk 0:01:19.8]} 33. Nd2 {[%clk 0:00:12.8]} 33... a6
{[%clk 0:01:16.8]} 34. Re1 {[%clk 0:00:12.6]} 34... Rce8 {[%clk 0:01:14.4]} 35.
Nd3 {[%clk 0:00:13.2]} 35... Rf5 {[%clk 0:01:10.7]} 36. Ne4 {[%clk 0:00:13.2]}
36... Bxe4 {[%clk 0:01:10.8]} 37. Rxe4 {[%clk 0:00:14.1]} 37... Rf6 {[%clk
0:01:04]} 38. Kf2 {[%clk 0:00:12.6]} 38... b5 {[%clk 0:00:53.9]} 39. Nxc5 {[%clk
0:00:12.1]} 39... bxc4 {[%clk 0:00:50.1]} 40. bxc4 {[%clk 0:00:13]} 40... Rc6
{[%clk 0:00:49.8]} 41. Nd3 {[%clk 0:00:12.8]} 41... Rxc4 {[%clk 0:00:49.7]} 42.
Nxe5 {[%clk 0:00:13.4]} 42... Rc2+ {[%clk 0:00:46.2]} 43. Kg3 {[%clk 0:00:13.8]}
43... Rc5 {[%clk 0:00:42.6]} 44. f4 {[%clk 0:00:13.6]} 44... Rc3+ {[%clk
0:00:31.3]} 45. Kg4 {[%clk 0:00:12.3]} 45... d3 {[%clk 0:00:24.4]} 46. Rd4
{[%clk 0:00:12.5]} 46... Rc2 {[%clk 0:00:20.5]} 47. g3 {[%clk 0:00:12.3]} 47...
d2 {[%clk 0:00:20.2]} 48. Kf5 {[%clk 0:00:10.2]} 48... Rb8 {[%clk 0:00:10.7]}
49. h4 {[%clk 0:00:09.2]} 49... Rb1 {[%clk 0:00:09.9]} 50. Rd8+ {[%clk
0:00:08.5]} 50... Kh7 {[%clk 0:00:09.5]} 51. Nf7 {[%clk 0:00:05.7]} 51... Rc5+
{[%clk 0:00:09.1]} 52. Ke6 {[%clk 0:00:06.1]} 52... d1=Q {[%clk 0:00:08.3]} 53.
Rh8+ {[%clk 0:00:05.8]} 53... Kg6 {[%clk 0:00:08.4]} 54. h5+ {[%clk 0:00:04.6]}
54... Kxh5 {[%clk 0:00:08.2]} 55. Ne5 {[%clk 0:00:03.9]} 55... Qd5+ {[%clk
0:00:07.9]} 56. Kf5 {[%clk 0:00:04.1]} 56... g6+ {[%clk 0:00:05.8]} 57. Kf6
{[%clk 0:00:03.7]} 57... Rb6+ {[%clk 0:00:05.7]} 58. Kg7 {[%clk 0:00:03.3]}
58... Rc7+ {[%clk 0:00:05.9]} 59. Kf8 {[%clk 0:00:02.7]} 59... Qa8# {[%clk
0:00:05.8]} 0-1